bitfinex/quotes_ETHUSD_20251126
["timestamp","ask_amount","ask_price","bid_price","bid_amount"]
[1764195044751,0.5774,3028.4,3028.0,7.79981391]
[1764195045057,0.30809466,3028.3,3028.0,7.79981391]
[1764195045260,0.5774,3028.4,3028.0,7.79981391]
[1764195045446,0.30798381,3028.3,3028.0,7.79981391]
[1764195045647,0.5774,3028.4,3028.0,7.79981391]
[1764195045964,0.30798117,3028.3,3028.0,7.79981391]
[1764195046147,0.5774,3028.4,3028.0,7.79981391]
[1764195046347,0.30793763,3028.3,3028.0,7.79981391]
[1764195046574,0.5774,3028.4,3028.0,7.79981391]
[1764195046749,0.30793128,3028.3,3028.0,7.80081391]
[1764195046949,0.5774,3028.4,3028.0,7.80081391]
[1764195047160,0.30793148,3028.3,3028.0,7.80081391]
[1764195047361,0.5774,3028.4,3028.0,7.80081391]
[1764195047546,0.30793853,3028.3,3028.0,7.80081391]
[1764195047751,3.30363829,3028.8,3028.1,3.50045948]
[1764195047752,0.209,3028.5,3028.1,3.50045948]
[1764195047958,0.209,3028.5,3028.2,7.33017769]
[1764195048675,0.209,3028.5,3028.2,7.81927769]
[1764195048875,0.002,3028.8,3028.2,7.81927769]
[1764195048876,0.002,3028.8,3028.4,0.4653]
[1764195049073,0.30808623,3028.7,3028.4,6.84890298]
[1764195049379,0.002,3028.8,3028.7,0.870804]
[1764195049577,0.002,3028.8,3028.7,7.25440698]
[1764195049881,0.002,3028.8,3028.7,11.0452536]
[1764195050548,0.002,3028.8,3028.7,11.77084771]
[1764195050753,0.002,3028.8,3028.7,13.38148552]
[1764195059169,0.002,3028.8,3028.7,13.74988552]
[1764195060901,0.209,3030.2,3028.8,2.08549811]
[1764195061062,0.1244,3029.9,3029.3,0.405504]
[1764195061266,0.1244,3029.9,3029.4,0.6789107]
[1764195061515,0.4928,3029.9,3029.4,1.67011049]
[1764195062201,0.3684,3029.8,3029.6,0.72559411]
[1764195062704,0.1798,3029.7,3029.6,0.72559411]
[1764195064162,0.1798,3029.7,3029.6,4.02635988]
[1764195065784,0.1818,3029.7,3029.6,4.02635988]
[1764195068424,0.002,3029.7,3029.6,6.15397841]
[1764195068690,0.209,3030.8,3029.7,0.405504]
[1764195068862,0.209,3030.8,3030.1,1.13109811]
[1764195069067,0.209,3030.8,3030.4,0.72559411]
[1764195069494,0.209,3030.8,3030.5,0.3704]
[1764195070699,8.12114438,3032.7,3030.5,0.3704]
[1764195070700,0.209,3031.4,3030.7,0.72559411]
[1764195070877,0.3704,3031.2,3030.7,0.72559411]
[1764195071079,0.295,3030.8,3030.7,0.72559411]
[1764195071983,0.209,3030.9,3030.7,0.72559411]
[1764195072185,0.3704,3031.9,3030.9,0.72559411]
[1764195072384,0.51611723,3031.8,3030.9,1.55414323]
[1764195072584,0.30711723,3031.7,3031.1,0.72559411]
[1764195072784,0.3704,3031.7,3031.1,0.72559411]
[1764195073095,0.3704,3031.9,3031.1,7.76989709]
[1764195073299,0.1288,3032.0,3031.5,0.72559411]
[1764195073300,0.209,3031.8,3031.5,0.72559411]
[1764195073479,0.1288,3032.0,3031.5,0.72559411]
[1764195073799,0.209,3032.0,3031.8,0.72559411]
[1764195073968,0.3704,3032.5,3031.8,0.72559411]
[1764195074407,0.1244,3033.1,3031.8,0.72559411]
[1764195074408,0.1244,3033.1,3031.8,1.13109811]
[1764195074578,0.88604215,3033.0,3032.3,6.59565346]
[1764195074782,0.30664215,3032.9,3032.3,3.29782673]
[1764195075026,0.1778,3032.4,3032.3,3.29782673]
[1764195075900,0.3704,3032.9,3032.3,6.96405346]
[1764195076267,0.209,3032.8,3032.3,6.96405346]
[1764195076674,0.209,3032.7,3032.4,0.72559411]
[1764195077099,0.1778,3032.5,3032.4,0.72559411]
[1764195078196,0.1244,3033.1,3032.4,1.18709411]
[1764195078197,0.209,3032.6,3032.4,1.18709411]
[1764195078601,0.1778,3032.5,3032.3,0.3684]
[1764195078801,0.0037,3032.4,3032.3,4.39175121]
[1764195079794,0.0037,3032.4,3032.3,1.09399411]
[1764195079981,0.0037,3032.4,3032.3,0.72559411]
[1764195079982,0.3741,3032.4,3032.3,0.72559411]
[1764195080187,0.3741,3032.4,3032.3,4.02342084]
[1764195080777,0.3741,3032.4,3032.3,0.72559411]
[1764195080997,0.0037,3032.4,3032.3,4.02342084]
[1764195081193,0.0037,3032.4,3032.1,3.29803593]
[1764195081194,0.3741,3032.4,3032.1,3.29801991]
[1764195081399,0.1742,3032.2,3032.1,3.29801991]
[1764195081885,0.1742,3032.2,3032.1,4.02361402]
[1764195084720,0.1742,3032.2,3032.1,0.72559411]
[1764195084721,0.5446,3032.2,3032.1,0.72559411]
[1764195085216,0.5466,3032.2,3032.0,0.72559411]
[1764195085419,0.209,3032.1,3032.0,3.29813711]
[1764195085627,0.002,3032.2,3032.1,1.18709411]
[1764195085778,0.002,3032.2,3032.1,0.72559411]
[1764195085779,0.211,3032.2,3032.1,0.72559411]
[1764195085978,0.3888,3032.2,3032.1,0.72559411]
[1764195087390,0.3888,3032.2,3032.1,4.02363836]
[1764195091325,0.211,3032.2,3032.1,4.48513836]
[1764195091510,0.211,3032.2,3032.1,4.95553836]
[1764195091992,0.002,3032.2,3032.1,5.78090719]
[1764195092194,0.211,3032.2,3032.1,5.78090719]
[1764195092526,0.002,3032.2,3032.1,5.78090719]
[1764195093080,0.002,3032.2,3032.1,14.46063502]
[1764195093313,0.209,3033.4,3032.2,0.405504]
[1764195093579,0.209,3033.4,3032.4,1.13109811]
[1764195094037,0.209,3033.4,3032.6,0.405504]
[1764195094412,0.209,3033.4,3032.7,0.4704]
[1764195094739,0.209,3033.4,3033.3,0.4615]
[1764195095086,0.209,3034.7,3033.4,1.13109811]
[1764195095351,2.37485918,3036.4,3033.4,1.13109811]
[1764195095352,0.209,3035.2,3034.6,0.72559411]
[1764195095560,0.1778,3034.7,3034.1,0.1965]
[1764195095702,0.3704,3034.6,3034.3,0.72559411]
[1764195095900,0.209,3035.2,3034.4,0.40213558]
[1764195096105,0.3704,3034.7,3034.4,0.87253558]
[1764195096432,0.209,3035.8,3034.5,0.405504]
[1764195096611,0.209,3035.8,3034.6,0.4615]
[1764195096940,0.67610481,3035.7,3034.6,0.4615]
[1764195097144,0.30570481,3035.6,3034.6,0.4615]
[1764195097307,0.67610481,3035.6,3034.6,0.9319]
[1764195097507,0.3704,3035.6,3034.7,0.72559411]
[1764195097810,0.82934428,3035.9,3034.7,0.72559411]
[1764195097811,0.21,3035.8,3034.8,0.49528104]
[1764195098217,1.19974428,3035.9,3034.9,0.4704]
[1764195098218,0.82934428,3035.9,3034.9,0.4704]
[1764195098422,0.21,3035.8,3034.9,0.4704]
[1764195098747,0.21,3035.7,3034.9,0.4704]
[1764195098907,0.21,3035.6,3034.9,0.4704]
[1764195099509,0.21,3035.6,3034.9,1.19599411]
[1764195099732,0.21,3035.6,3034.9,0.91950705]
[1764195099942,0.21,3035.6,3034.7,4.02081274]
[1764195100117,0.3704,3035.8,3035.0,0.4704]
[1764195100319,0.21,3035.7,3035.0,0.4704]
[1764195100532,1.19974428,3035.9,3035.1,0.1965]
[1764195100735,0.21,3035.8,3034.7,0.4704]
[1764195100945,0.1778,3035.1,3034.5,0.4704]
[1764195101130,0.3704,3035.8,3034.5,0.4704]
[1764195101438,0.21,3035.1,3034.6,0.44914349]
[1764195101811,0.21,3035.1,3034.7,0.4704]
[1764195102504,0.21,3035.1,3034.4,0.72559411]
[1764195102505,0.1778,3034.8,3034.4,0.72559411]
[1764195102704,0.1778,3034.8,3034.1,0.6669]
[1764195102705,0.0037,3034.7,3034.1,0.6669]
[1764195102933,0.0037,3034.7,3034.2,0.4704]
[1764195103120,0.5804,3034.6,3034.2,0.4704]
[1764195103311,0.5804,3034.6,3034.2,1.19599411]
[1764195103513,0.7904,3034.6,3034.3,0.46883396]
[1764195103708,0.7904,3034.6,3034.3,1.66482807]
[1764195104211,0.7904,3034.6,3034.1,0.1965]
[1764195104427,0.7904,3034.6,3034.1,3.95535676]
[1764195104635,0.7904,3034.6,3034.0,0.72559411]
[1764195104636,0.3704,3034.2,3034.0,0.72559411]
[1764195104805,0.3704,3034.2,3033.6,0.463]
[1764195105011,0.3704,3034.2,3033.6,3.75940151]
[1764195105211,0.3704,3034.2,3033.6,4.46500356]
[1764195105520,0.1778,3034.5,3033.7,0.463]
[1764195105715,0.7904,3034.2,3033.7,1.18859411]
[1764195106033,0.7904,3034.2,3033.8,0.72559411]
[1764195106234,0.7904,3034.2,3033.6,0.70560205]
[1764195106412,0.21,3034.6,3033.6,0.72559411]
[1764195106613,0.3704,3034.4,3033.4,1.18859411]
[1764195106832,0.3704,3034.4,3033.5,0.72559411]
[1764195107614,0.3704,3034.4,3033.3,0.1965]
[1764195108013,0.3704,3034.4,3032.8,0.463]
[1764195108014,6.59130606,3034.3,3032.8,0.463]
[1764195108320,0.1778,3033.4,3032.6,3.29747605]
[1764195108516,0.21,3033.3,3032.4,0.463]
[1764195108717,0.21,3033.3,3032.4,0.37609165]
[1764195108933,0.1172,3033.2,3032.2,0.463]
[1764195109261,0.1172,3033.2,3032.0,3.29815303]
[1764195109494,0.3704,3033.1,3032.0,0.72559411]
[1764195109775,0.1778,3032.1,3031.3,0.463]
[1764195109939,0.1172,3033.2,3031.3,0.463]
[1764195109940,0.1172,3033.2,3031.4,8.73722383]
[1764195109941,0.30538696,3032.9,3031.4,8.73722383]
[1764195110138,0.21,3032.8,3032.0,0.4833]
[1764195110532,0.5804,3032.8,3032.0,0.4833]
[1764195110938,0.3704,3032.7,3032.0,0.4833]
[1764195111240,0.3704,3032.7,3031.8,0.463]
[1764195112072,0.3704,3032.7,3032.0,0.72559411]
[1764195112367,0.75815979,3032.7,3032.0,0.72559411]
[1764195112554,0.21,3032.8,3031.9,0.72559411]
[1764195112737,0.21,3032.8,3031.4,3.29880583]
[1764195112738,0.1778,3032.0,3031.4,3.29880583]
[1764195112933,0.3878,3032.0,3031.5,0.72559411]
[1764195113368,0.3878,3032.0,3031.5,1.18859411]
[1764195113664,0.1244,3031.9,3031.5,0.72559411]
[1764195113864,0.1244,3031.9,3031.4,0.72559411]
[1764195114049,0.1244,3031.9,3031.4,3.29875032]
[1764195114252,0.1244,3031.9,3031.5,0.72559411]
[1764195114568,0.21,3032.0,3031.5,0.72559411]
[1764195115567,0.21,3031.9,3031.6,0.463]
[1764195115738,0.1778,3031.7,3031.4,0.74369721]
[1764195116064,0.21,3031.8,3031.0,6.78347367]
[1764195116367,0.21,3031.8,3031.1,1.91324148]
[1764195116742,0.21,3031.8,3031.2,0.463]
[1764195118371,0.3704,3032.4,3031.4,0.72559411]
[1764195118572,0.21,3032.3,3031.4,0.72559411]
[1764195119056,0.5804,3032.3,3031.4,0.72559411]
[1764195119366,0.96820161,3032.3,3031.4,0.72559411]
[1764195119769,0.75820161,3032.3,3031.4,0.72559411]
[1764195119971,0.21,3032.2,3031.5,0.463]
[1764195120348,0.21,3032.2,3031.1,0.72464737]
[1764195120349,0.3704,3031.6,3031.2,4.02457641]
[1764195120769,0.3704,3031.6,3031.2,0.72559411]
[1764195120971,0.21,3031.5,3030.7,0.1851]
[1764195121171,0.5804,3031.5,3030.7,0.1851]
[1764195121488,0.96829593,3031.5,3030.8,0.72559411]
[1764195121649,0.5804,3031.5,3031.1,0.001]
[1764195122556,6.59521846,3032.5,3031.1,0.001]
[1764195122755,0.3704,3032.2,3031.1,0.464]
[1764195123269,0.3704,3032.2,3031.1,0.001]
[1764195124670,3.50804425,3032.1,3031.2,0.72559411]
[1764195124874,0.38784443,3032.0,3031.2,0.72559411]
[1764195125056,0.75824443,3032.0,3031.2,0.72559411]
[1764195125648,0.3704,3031.9,3031.2,0.72559411]
[1764195126559,0.21,3031.8,3031.2,0.72559411]
[1764195126755,0.21,3031.8,3031.1,0.001]
[1764195126756,0.1778,3031.3,3031.1,0.001]
[1764195126958,0.3878,3031.2,3031.1,0.001]
[1764195127470,0.7562,3031.2,3031.1,0.001]
[1764195128853,4.05522348,3031.2,3031.1,0.001]
[1764195129052,4.79063044,3031.2,3031.1,0.001]
[1764195129272,0.91320696,3031.2,3031.1,0.001]
[1764195129481,0.7562,3031.2,3031.1,0.001]
[1764195129690,4.42939431,3031.9,3031.1,0.6489]
[1764195129691,0.3704,3031.9,3031.1,0.6489]
[1764195129848,0.3704,3031.9,3031.1,1.1453]
[1764195130050,0.21,3031.8,3031.1,1.1453]
[1764195130271,0.1778,3031.2,3031.1,0.001]
[1764195130473,0.3897,3031.2,3031.1,0.001]
[1764195130975,0.21,3031.2,3031.1,0.001]
[1764195132364,0.3897,3031.2,3031.1,0.001]
[1764195133056,0.7563,3031.2,3031.1,0.001]
[1764195133865,0.6063,3031.2,3031.1,0.001]
[1764195135959,0.99681068,3031.2,3031.1,0.001]
[1764195136366,1.3039018,3031.2,3031.1,0.001]
[1764195136569,0.6976018,3031.2,3031.1,0.6854]
[1764195136770,0.3724,3032.6,3031.1,1.1439]
[1764195136976,4.18500237,3032.5,3031.2,0.4585]
[1764195137175,1.09609338,3032.4,3031.3,0.72559411]
[1764195137368,0.30699314,3032.3,3031.3,1.18409411]
[1764195137568,0.30699314,3032.2,3031.3,1.18409411]
[1764195137782,0.3704,3032.3,3031.3,1.18409411]
[1764195137783,0.30699314,3032.1,3031.3,1.18409411]
[1764195138084,0.30699314,3032.0,3031.2,6.59801342]
[1764195138290,0.21,3032.1,3031.4,0.4585]
[1764195138457,0.002,3032.6,3031.9,0.4906]
[1764195138458,0.21,3032.0,3031.9,0.4906]
[1764195140582,0.21,3032.0,3031.5,0.4585]
[1764195140767,0.21,3031.9,3031.6,0.4585]
[1764195141570,0.21,3031.9,3031.8,0.4906]
[1764195143389,0.21,3031.9,3031.8,1.21619411]
[1764195143984,0.21,3031.9,3031.8,0.4906]
[1764195144862,0.51816893,3031.9,3031.2,6.59804696]
[1764195145062,0.21,3031.9,3031.3,1.7347895]
[1764195145284,0.21,3031.9,3031.3,2.1932895]
[1764195145488,0.21,3031.9,3031.3,3.75740232]
[1764195145489,0.30818982,3031.8,3031.3,3.75740232]
[1764195145787,0.30818982,3031.7,3031.4,1.18409411]
[1764195145988,0.21,3031.9,3031.4,1.18409411]
[1764195146163,0.30819534,3031.8,3031.4,1.18409411]
[1764195146363,0.30819534,3031.7,3031.4,0.72559411]
[1764195146562,0.21,3031.9,3031.4,0.72559411]
[1764195146762,0.30820458,3031.8,3031.4,0.72559411]
[1764195146973,0.30820458,3031.7,3031.4,0.72559411]
[1764195147169,0.21,3031.9,3031.4,1.18409411]
[1764195147384,0.30821021,3031.8,3031.5,0.4585]
[1764195147583,0.21,3031.9,3031.5,0.4585]
[1764195147584,0.30821021,3031.7,3031.5,0.4585]
[1764195147775,0.002,3032.2,3031.5,3.75709434]
[1764195147973,0.51821022,3032.1,3031.8,0.4906]
[1764195148169,0.30821022,3032.0,3031.8,0.4906]
[1764195148377,0.30821022,3031.9,3031.8,0.4906]
[1764195148698,0.30821022,3031.9,3031.6,0.72559411]
[1764195148991,0.30821022,3031.8,3031.6,0.72559411]
[1764195149187,0.21,3032.1,3031.6,1.18409411]
[1764195149391,0.30821335,3032.0,3031.6,1.18409411]
[1764195149563,0.21,3032.1,3031.6,1.18409411]
[1764195149564,0.30821335,3031.9,3031.6,1.18409411]
[1764195149764,0.30821335,3031.8,3031.6,4.48263494]
[1764195149964,0.21,3032.1,3031.6,4.48263494]
[1764195150270,0.30821335,3032.0,3031.5,0.72559411]
[1764195150477,0.30821335,3031.9,3031.5,0.72559411]
[1764195150774,0.21,3032.1,3031.6,0.4585]
[1764195150775,0.30821335,3031.8,3031.6,0.4585]
[1764195150975,0.21,3032.1,3031.6,0.4585]
[1764195151175,0.3082255,3032.0,3031.6,0.4585]
[1764195151387,0.5182255,3031.9,3031.6,0.4585]
[1764195151586,0.3082255,3031.8,3031.6,0.4585]
[1764195151790,0.21,3031.9,3031.8,0.4906]
[1764195151985,0.51821707,3031.9,3031.8,0.4906]
[1764195152182,0.51821707,3031.9,3031.6,3.75707163]
[1764195152388,0.30821707,3031.8,3031.7,0.72559411]
[1764195152775,0.30821707,3031.8,3031.7,1.21619411]
[1764195153597,0.85441707,3031.8,3031.1,0.1948]
[1764195153795,0.31191707,3031.7,3031.1,0.001]
[1764195153980,0.1761,3031.2,3031.1,0.001]
[1764195154294,0.69434913,3031.2,3031.1,0.001]
[1764195155098,1.06454913,3031.2,3031.1,0.001]
[1764195156484,1.50088674,3031.2,3031.1,0.001]
[1764195157296,4.79991022,3031.2,3031.1,0.001]
[1764195157624,1.50088674,3031.2,3031.1,0.001]
[1764195158593,1.06454913,3031.2,3031.1,0.001]
[1764195159900,1.06654913,3031.2,3031.1,0.001]
[1764195163177,0.31024913,3031.2,3031.1,0.6854]
[1764195163407,0.31024913,3031.2,3031.1,1.1439]
[1764195163693,0.31024913,3031.2,3031.1,0.4916]
[1764195163694,0.52024913,3031.2,3031.1,0.4916]
[1764195164089,0.212,3031.2,3031.1,0.4916]
[1764195164771,0.002,3031.2,3031.1,0.4916]
[1764195164969,0.212,3031.2,3031.1,0.001]
[1764195167594,0.212,3031.2,3031.1,0.4859]
[1764195167986,0.002,3031.2,3031.1,0.4859]
[1764195168182,0.212,3031.2,3031.1,0.4859]
[1764195168374,0.212,3031.2,3031.1,0.9498]
[1764195168775,0.212,3031.2,3031.1,0.001]
[1764195169006,0.212,3031.2,3031.1,0.4859]
[1764195169981,0.51976316,3031.2,3031.1,0.4859]
[1764195170575,0.30976316,3031.2,3031.1,0.4859]
[1764195170774,0.51976316,3031.2,3031.1,0.4859]
[1764195171107,0.30976316,3031.2,3031.1,0.4859]
[1764195171305,0.51976316,3031.2,3031.1,0.4859]
[1764195171691,0.51976316,3031.2,3031.1,0.001]
[1764195171692,0.69756316,3031.2,3031.1,0.001]
[1764195172101,1.13404169,3031.2,3031.1,0.001]
[1764195172402,1.50244169,3031.2,3031.1,0.001]
[1764195172627,1.06596316,3031.2,3031.1,0.001]
[1764195175904,4.36498664,3031.2,3031.1,0.001]
[1764195176305,1.06596316,3031.2,3031.1,0.001]
[1764195176507,4.36498664,3031.2,3031.1,0.001]
[1764195177901,1.06596316,3031.2,3031.1,0.001]
[1764195178086,4.80147606,3031.2,3031.1,0.001]
[1764195178603,1.50245258,3031.2,3031.1,0.001]
[1764195178911,4.80147606,3031.2,3031.1,0.001]
[1764195180215,1.50245258,3031.2,3031.1,0.001]
[1764195180428,0.69756316,3031.2,3031.1,0.001]
[1764195180918,1.06596316,3031.2,3031.1,0.001]
[1764195181796,0.85596316,3031.2,3031.1,0.001]
[1764195181989,0.85596316,3031.2,3031.1,0.6746]
[1764195181990,1.0206291,3031.2,3031.1,0.6746]
[1764195182190,1.0206291,3031.2,3031.1,0.001]
[1764195182191,4.36698664,3031.2,3031.1,0.001]
[1764195182386,1.83454306,3031.2,3031.1,0.001]
[1764195182597,5.84488788,3031.2,3031.1,0.001]
[1764195183388,1.7876644,3031.2,3031.1,0.001]
[1764195183587,1.77980138,3031.2,3031.1,0.001]
[1764195184410,1.60200138,3031.2,3031.1,0.001]
[1764195185218,1.77980138,3031.2,3031.1,0.001]
[1764195185420,1.60200138,3031.2,3031.1,0.001]
[1764195187522,1.39200138,3031.2,3031.1,0.001]
[1764195187722,2.07108479,3031.2,3031.1,0.001]
[1764195188624,2.24888479,3031.2,3031.1,0.001]
[1764195190324,2.0713122,3031.2,3031.1,0.001]
[1764195190619,2.2491122,3031.2,3031.1,0.001]
[1764195191418,1.7009122,3031.2,3031.1,0.001]
[1764195191619,1.8787122,3031.2,3031.1,0.001]
[1764195192219,2.2471122,3031.2,3031.1,0.001]
[1764195193329,1.8787122,3031.2,3031.1,0.001]
[1764195195429,1.40962879,3031.2,3031.1,0.001]
[1764195197107,1.77802879,3031.2,3031.1,0.001]
[1764195198130,5.07705227,3031.2,3031.1,0.001]
[1764195198833,8.95655627,3031.2,3031.1,0.001]
[1764195199034,9.08871929,3031.2,3031.1,0.001]
[1764195199208,11.94581213,3031.2,3031.1,0.001]
[1764195199408,0.405504,3031.1,3031.0,0.001]
[1764195199633,1.80043279,3031.1,3031.0,0.001]
[1764195200235,5.09956511,3031.1,3031.0,0.001]
[1764195201104,8.78256511,3031.1,3031.0,0.001]
[1764195201305,12.14750643,3031.1,3031.0,0.001]
[1764195202106,20.36206814,3031.1,3030.7,0.001]
[1764195202338,8.69612723,3030.8,3030.7,0.001]
[1764195202658,9.71695602,3030.8,3030.7,0.001]
[1764195202809,11.56212176,3030.8,3030.7,0.001]
[1764195203009,12.22902176,3030.8,3030.7,0.001]
[1764195203237,4.05222057,3030.8,3030.7,0.4662]
[1764195203434,4.05222057,3030.8,3030.7,0.001]
[1764195203435,7.44069365,3030.8,3030.7,0.001]
[1764195203608,8.55781179,3030.8,3030.7,0.001]
[1764195204140,12.74699671,3030.8,3030.7,0.001]
[1764195204309,11.85727067,3030.8,3030.7,0.001]
[1764195204507,5.48276759,3030.8,3030.7,0.001]
[1764195204815,11.06776544,3030.8,3030.7,0.001]
[1764195205322,12.25250358,3030.8,3030.7,0.001]
[1764195205907,12.35229184,3030.8,3030.7,0.001]
[1764195206418,4.19959411,3030.5,3030.4,0.001]
[1764195206619,14.78770548,3030.5,3030.4,0.001]
[1764195206923,16.84952768,3030.5,3030.4,0.001]
[1764195207125,18.62564417,3030.5,3030.4,0.001]
[1764195207309,16.84952768,3030.5,3030.4,0.001]
[1764195207708,16.84952768,3030.5,3029.6,0.001]
[1764195207709,1.13109811,3029.7,3029.6,0.001]
[1764195208022,10.02618789,3029.7,3029.6,0.001]
[1764195208331,12.32147833,3029.7,3029.6,0.001]
[1764195208730,12.42126659,3029.7,3029.6,0.001]
[1764195209542,8.94726659,3029.7,3029.6,0.001]
[1764195212142,8.73826659,3029.7,3029.6,0.001]
[1764195212444,8.84747833,3029.7,3029.6,0.001]
[1764195212615,8.84747833,3029.7,3029.3,0.001]
[1764195212616,18.92279199,3029.7,3029.3,0.001]
[1764195212817,13.07802112,3029.4,3029.3,0.001]
[1764195213033,14.19841409,3029.4,3029.3,0.001]
[1764195213348,14.56881409,3029.4,3029.3,0.001]
[1764195214220,17.86979778,3029.4,3029.3,0.001]
[1764195214421,16.2467297,3029.4,3029.3,0.001]
[1764195214731,15.99020152,3029.4,3029.3,0.001]
[1764195216719,16.12246418,3029.4,3029.3,0.001]
[1764195219252,6.64193877,3029.4,3029.3,0.001]
[1764195219458,7.71644547,3029.4,3029.3,0.001]
[1764195219641,7.01233877,3029.4,3029.3,0.001]
[1764195219815,7.71644506,3029.4,3029.3,0.001]
[1764195220017,6.73154106,3029.4,3029.3,0.001]
[1764195220222,6.70662303,3029.4,3029.3,0.001]
[1764195220422,7.81623967,3029.4,3029.3,0.001]
[1764195220618,7.81623967,3029.4,3028.9,0.001]
[1764195220619,4.60509811,3029.3,3028.9,0.001]
[1764195220929,9.70740938,3029.0,3028.9,0.001]
[1764195221133,1.13109811,3028.9,3028.6,0.001]
[1764195221324,4.83518637,3028.7,3028.6,0.001]
[1764195221538,5.84828958,3028.7,3028.6,0.001]
[1764195221756,7.56380317,3028.7,3028.6,0.001]
[1764195221957,7.73109787,3028.7,3028.6,0.001]
[1764195222450,11.03284449,3028.7,3028.6,0.001]
[1764195222649,11.03202404,3028.7,3028.6,0.001]
[1764195223367,12.21486169,3028.7,3028.6,0.001]
[1764195224066,12.61388784,3028.7,3028.6,0.001]
[1764195224282,13.00360938,3028.4,3028.3,0.001]
[1764195224574,4.70488637,3028.1,3027.6,0.001]
[1764195224740,6.77349299,3028.1,3027.6,0.001]
[1764195224952,7.14189299,3028.1,3027.6,0.001]
[1764195225262,3.879504,3027.9,3027.6,0.001]
[1764195225565,13.00730938,3027.7,3027.6,0.001]
[1764195225747,14.01959214,3027.7,3027.6,0.001]
[1764195225952,14.38999214,3027.7,3027.6,0.001]
[1764195226169,4.29938237,3027.5,3027.1,0.001]
[1764195226343,11.71160702,3027.5,3027.1,0.001]
[1764195226662,11.20238851,3027.5,3027.1,0.001]
[1764195227046,8.34684316,3027.5,3027.1,0.001]
[1764195227240,7.46920025,3027.5,3027.1,0.001]
[1764195227840,7.46920025,3027.5,3027.4,0.4551]
[1764195227841,7.08240025,3027.5,3027.4,0.4551]
[1764195228044,6.58810806,3027.5,3027.4,0.001]
[1764195228445,6.76590806,3027.5,3027.4,0.001]
[1764195229044,7.56781075,3027.5,3027.4,0.001]
[1764195229246,8.58681075,3027.5,3027.4,0.001]
[1764195230649,0.405504,3027.4,3027.1,0.001]
[1764195230850,9.43352112,3027.2,3027.1,0.001]
[1764195231064,10.54441438,3027.2,3027.1,0.001]
[1764195231652,10.54441438,3027.2,3027.1,0.6492]
[1764195231653,2.35120311,3027.2,3027.1,0.6492]
[1764195231852,2.45099137,3027.2,3027.1,0.4551]
[1764195232058,2.75128862,3027.2,3027.1,0.4551]
[1764195232579,6.05467128,3027.2,3027.1,0.4551]
[1764195232873,6.05467128,3027.2,3027.1,0.001]
[1764195233570,6.51017128,3027.2,3027.1,0.001]
[1764195234257,6.51017128,3027.2,3027.1,0.4551]
[1764195234452,6.30117128,3027.2,3027.1,1.1047]
[1764195234663,6.11008577,3027.2,3027.1,0.6492]
[1764195234850,6.11008577,3027.2,3027.1,0.4551]
[1764195235043,14.68639704,3027.2,3027.1,0.001]
[1764195235550,15.05107325,3027.2,3027.1,0.001]
[1764195235871,0.405504,3027.0,3026.4,0.4555]
[1764195236052,0.405504,3026.7,3026.5,0.4565]
[1764195236254,0.92077078,3026.6,3026.5,0.4565]
[1764195236562,4.22480831,3026.6,3026.5,0.4565]
[1764195236774,4.22480831,3026.6,3026.5,0.4551]
[1764195236775,5.38474932,3026.6,3026.5,0.4551]
[1764195236949,6.13762313,3026.6,3026.5,0.4551]
[1764195237150,6.13762313,3026.6,3026.5,0.9106]
[1764195238275,6.13762313,3026.6,3026.5,0.4805871]
[1764195238691,6.13762313,3026.6,3026.5,0.0250871]
[1764195239246,6.13762313,3026.6,3025.6,3.30508378]
[1764195239247,0.405504,3026.5,3025.6,3.30508378]
[1764195239455,0.405504,3026.3,3025.6,3.30509503]
[1764195239676,0.51426678,3026.2,3025.7,3.3050125]
[1764195240083,0.51426678,3026.2,3026.1,0.6492]
[1764195240084,0.50036678,3026.2,3026.1,0.6492]
[1764195240290,0.70936678,3026.2,3026.1,0.6492]
[1764195240466,0.70936678,3026.2,3026.1,1.1047]
[1764195240866,0.50036678,3026.2,3026.1,1.1047]
[1764195241168,0.50036678,3026.2,3026.1,4.40928345]
[1764195241169,0.30526678,3026.2,3026.1,4.40928345]
[1764195241377,0.51526678,3026.2,3026.1,5.19947077]
[1764195241978,0.99255418,3026.4,3026.1,5.19947077]
[1764195241979,0.99255418,3026.4,3026.1,8.50405422]
[1764195242152,3.30349179,3027.1,3026.3,0.4541]
[1764195242356,0.91475801,3027.0,3026.2,0.4555]
[1764195242679,4.21839063,3027.0,3026.3,3.30436506]
[1764195242885,3.51363262,3027.0,3026.9,0.4541]
[1764195243186,3.51363262,3027.0,3026.9,0.58716336]
[1764195243350,4.21859247,3027.0,3026.9,0.58716336]
[1764195243550,0.209,3027.0,3026.9,0.58716336]
[1764195244157,0.91402992,3027.0,3026.9,0.58716336]
[1764195244955,4.21763084,3027.0,3026.9,0.58716336]
[1764195245251,5.06898496,3027.0,3026.9,0.58716336]
[1764195246688,5.06998496,3027.0,3026.9,0.58716336]
[1764195247065,6.06248989,3027.0,3026.9,0.58716336]
[1764195247266,6.06248989,3027.0,3026.9,0.13166336]
[1764195247669,6.06248989,3027.0,3026.9,0.60596336]
[1764195249370,6.06248989,3027.0,3026.9,0.4493]
[1764195249583,6.06448989,3027.0,3026.9,0.001]
[1764195249887,6.06448989,3027.0,3026.9,0.4493]
[1764195250054,6.94855782,3027.0,3026.9,0.4493]
[1764195250386,6.06448989,3027.0,3026.9,0.4493]
[1764195250562,6.96949389,3027.0,3026.9,0.001]
[1764195250757,0.405504,3026.9,3026.2,0.001]
[1764195250958,2.73477165,3026.8,3026.2,0.001]
[1764195251169,4.89439677,3026.7,3026.2,0.001]
[1764195251483,0.91402992,3026.6,3026.3,0.4483]
[1764195251782,0.70502992,3026.5,3026.3,0.4483]